bitfinex/quotes_BTCUSD_20250527
["timestamp","ask_amount","ask_price","bid_price","bid_amount"]
[1748363917600,0.19963554,110250.0,110240.0,2.66096823]
[1748363917839,0.0182285,110250.0,110240.0,5.68278057]
[1748363918069,0.28526785,110280.0,110270.0,0.18137299]
[1748363918070,0.18137145,110280.0,110270.0,0.18137299]
[1748363918264,0.16437145,110280.0,110270.0,1.20824155]
[1748363918481,0.16437145,110280.0,110270.0,1.01539163]
[1748363918699,0.16437145,110280.0,110270.0,1.06072063]
[1748363918918,0.17957145,110280.0,110270.0,1.06072063]
[1748363919169,0.19497145,110280.0,110270.0,1.06072063]
[1748363920039,0.19597145,110280.0,110270.0,0.94693463]
[1748363920481,0.19697145,110280.0,110270.0,0.94693463]
[1748363921621,0.17543927,110280.0,110270.0,3.4618711]
[1748363921853,0.17543927,110280.0,110270.0,2.8625951]
[1748363922076,0.17543927,110280.0,110270.0,2.7360351]
[1748363922287,0.17543927,110280.0,110270.0,2.5779201]
[1748363922509,0.17543927,110280.0,110270.0,2.3536671]
[1748363922726,0.17543927,110280.0,110270.0,2.2822671]
[1748363922941,0.17443927,110280.0,110270.0,2.2822671]
[1748363923149,0.17343927,110280.0,110270.0,2.2822671]
[1748363923831,0.17343927,110280.0,110270.0,2.36873333]
[1748363924078,0.15638967,110300.0,110290.0,0.009067]
[1748363924289,0.19945594,110300.0,110290.0,2.39934728]
[1748363924510,0.19945594,110300.0,110290.0,1.37553863]
[1748363924511,0.20852179,110300.0,110290.0,1.37553863]
[1748363924772,0.19945594,110300.0,110290.0,1.39399363]
[1748363924990,0.23235594,110300.0,110290.0,2.14889363]
[1748363925481,0.21535594,110300.0,110290.0,1.72824963]
[1748363925740,0.18245594,110300.0,110290.0,1.92772348]
[1748363925969,0.19152204,110300.0,110290.0,2.15893863]
[1748363926454,0.19152204,110300.0,110290.0,2.12654563]
[1748363926884,0.19152204,110300.0,110290.0,2.10378063]
[1748363928949,0.19152204,110300.0,110290.0,2.29418773]
[1748363929177,0.18245594,110300.0,110290.0,2.29418773]
[1748363929412,0.18245594,110300.0,110290.0,2.10378063]
[1748363932595,0.16545594,110300.0,110290.0,2.10378063]
[1748363933249,0.16545594,110300.0,110290.0,1.7381861]
[1748363933476,0.15638976,110300.0,110290.0,2.28512073]
[1748363933965,0.15638976,110300.0,110290.0,2.10378063]
[1748363934198,0.15638976,110300.0,110290.0,2.29418757]
[1748363934441,0.19945528,110300.0,110290.0,3.58494453]
[1748363934679,0.19945577,110300.0,110290.0,3.36181329]
[1748363935328,0.19945577,110300.0,110290.0,3.28410229]
[1748363935542,0.19945577,110300.0,110290.0,3.07317764]
[1748363936447,0.19038976,110300.0,110290.0,3.19032629]
[1748363936679,0.19702366,110300.0,110290.0,2.26097858]
[1748363936889,0.21282366,110300.0,110290.0,1.65172563]
[1748363937330,0.21282366,110300.0,110290.0,1.56408263]
[1748363937566,0.21282366,110300.0,110290.0,1.93892263]
[1748363939153,0.21282366,110300.0,110290.0,1.56408263]
[1748363939387,0.21282366,110300.0,110290.0,1.93892263]
[1748363939616,0.19582366,110300.0,110290.0,1.93892263]
[1748363940328,0.18137832,110310.0,110300.0,0.42797266]
[1748363940329,0.01812981,110310.0,110300.0,0.42797266]
[1748363940553,0.2085028,110310.0,110300.0,1.07732439]
[1748363940765,0.2085028,110310.0,110300.0,2.74701215]
[1748363940995,0.01813022,110310.0,110300.0,3.89050255]
[1748363941229,0.01812981,110310.0,110300.0,4.11152655]
[1748363941455,0.02719492,110310.0,110300.0,3.81775955]
[1748363941665,0.03626019,110310.0,110300.0,4.35670555]
[1748363941893,0.01912973,110310.0,110300.0,4.57605055]
[1748363942125,0.02819492,110310.0,110300.0,4.73023255]
[1748363942340,0.02919492,110310.0,110300.0,4.61411455]
[1748363942596,0.02919492,110310.0,110300.0,4.61396455]
[1748363942857,0.02919492,110310.0,110300.0,4.61081155]
[1748363943089,0.02919492,110310.0,110300.0,4.61352555]
[1748363943330,0.02919484,110310.0,110300.0,4.64944255]
[1748363943548,0.02919484,110310.0,110300.0,1.63265055]
[1748363943779,0.002,110310.0,110300.0,2.48799125]
[1748363944026,0.2845338,110330.0,110310.0,0.54491285]
[1748363944027,0.03066,110330.0,110310.0,0.54491285]
[1748363944263,0.19946161,110330.0,110320.0,3.55497764]
[1748363944497,0.20852491,110330.0,110320.0,3.72130087]
[1748363944724,0.20852483,110330.0,110320.0,4.15933066]
[1748363944973,6e-05,110330.0,110320.0,4.18293547]
[1748363945232,0.19773604,110360.0,110340.0,0.53032025]
[1748363945465,0.0164048,110360.0,110350.0,3.66622024]
[1748363945711,0.04408061,110360.0,110350.0,4.32350886]
[1748363945941,0.23436677,110360.0,110350.0,4.32350886]
[1748363946187,0.05314169,110360.0,110350.0,4.32350886]
[1748363946430,0.02650408,110380.0,110370.0,0.56292981]
[1748363946657,0.20896299,110380.0,110370.0,2.32336158]
[1748363946875,0.20896299,110380.0,110370.0,1.57786395]
[1748363947084,0.20896299,110380.0,110370.0,4.8397325]
[1748363947332,0.00965211,110380.0,110370.0,4.7907063]
[1748363947549,0.01871106,110380.0,110370.0,4.7907063]
[1748363947757,0.01871114,110380.0,110370.0,4.7907063]
[1748363947986,0.01871114,110380.0,110370.0,4.75579046]
[1748363947987,0.02777025,110380.0,110370.0,4.75579046]
[1748363948201,0.03682953,110380.0,110370.0,5.30646051]
[1748363948416,0.04588897,110380.0,110370.0,3.7295316]
[1748363948639,0.04688897,110380.0,110370.0,3.74765188]
[1748363948865,0.23814132,110380.0,110370.0,3.75671182]
[1748363949155,0.00783516,110380.0,110370.0,5.40903767]
[1748363949414,0.24933795,110400.0,110390.0,0.01454085]
[1748363949632,0.24933795,110400.0,110390.0,0.41826595]
[1748363949633,0.24028039,110400.0,110390.0,0.41826595]
[1748363949857,0.22173445,110390.0,110380.0,0.85205879]
[1748363950097,0.22173445,110390.0,110380.0,0.34]
[1748363950324,0.22175168,110380.0,110370.0,0.43156]
[1748363950562,0.22175168,110380.0,110370.0,0.342]
[1748363950796,0.31280563,110380.0,110370.0,0.001]
[1748363951477,0.19936507,110350.0,110340.0,1.19037879]
[1748363951737,0.19936507,110350.0,110340.0,3.1337668]
[1748363951980,0.02718498,110350.0,110340.0,3.14282912]
[1748363952237,0.32479522,110350.0,110340.0,0.00049371]
[1748363952492,0.32251943,110350.0,110340.0,0.00049371]
[1748363953211,0.23146548,110350.0,110340.0,0.8525525]
[1748363953430,0.23146548,110350.0,110340.0,0.43005371]
[1748363953431,0.32251943,110350.0,110340.0,0.43005371]
[1748363953888,0.21446548,110350.0,110340.0,0.43005371]
[1748363954123,0.21546548,110350.0,110340.0,0.43005371]
[1748363954409,0.21546548,110350.0,110340.0,0.34049371]
[1748363954634,0.21546548,110350.0,110340.0,0.43005371]
[1748363954865,0.21546548,110350.0,110340.0,0.9421125]
[1748363955305,0.18336548,110350.0,110340.0,0.9421125]
[1748363955777,0.19242739,110350.0,110340.0,0.9421125]
[1748363956004,0.19242739,110350.0,110340.0,1.59713624]
[1748363956233,0.19242739,110350.0,110340.0,1.6822705]
[1748363956456,0.19142739,110350.0,110340.0,1.6832705]
[1748363956680,0.20792739,110350.0,110340.0,0.74349371]
[1748363956938,0.22352739,110350.0,110340.0,0.83305371]
[1748363957626,0.22352739,110350.0,110340.0,1.3451125]
[1748363957876,0.20792739,110350.0,110340.0,1.3451125]
[1748363958098,0.19142739,110350.0,110340.0,1.8319325]
[1748363958342,0.19142739,110350.0,110340.0,1.7475835]
[1748363958567,0.19142739,110350.0,110340.0,1.6029925]
[1748363958781,0.19142739,110350.0,110340.0,1.5064835]
[1748363959246,0.19030094,110360.0,110350.0,0.89784891]
[1748363959492,0.20840775,110360.0,110350.0,2.21317788]
[1748363959712,0.15641908,110360.0,110350.0,1.71924315]
[1748363959951,0.15641908,110360.0,110350.0,1.72830497]
[1748363960209,0.00906067,110360.0,110350.0,1.73736671]
[1748363960458,0.18119224,110380.0,110370.0,0.52120866]
[1748363960749,0.18119224,110380.0,110370.0,2.27110679]
[1748363960952,0.16419224,110380.0,110370.0,2.09940479]
[1748363961165,0.16419224,110380.0,110370.0,2.26665479]
[1748363961391,0.16419224,110380.0,110370.0,1.73728879]
[1748363961626,0.17919224,110380.0,110370.0,1.73728879]
[1748363961853,0.17919224,110380.0,110370.0,1.63053879]
[1748363962302,0.19569224,110380.0,110370.0,1.75914279]
[1748363962531,0.19569224,110380.0,110370.0,1.76002279]
[1748363962762,0.19569224,110380.0,110370.0,1.76102279]
[1748363962989,0.19569224,110380.0,110370.0,1.77455879]
[1748363963829,0.19569224,110380.0,110370.0,0.83156]
[1748363964086,0.19569224,110380.0,110370.0,1.1202]
[1748363964338,0.19569224,110380.0,110370.0,1.12024]
[1748363964843,0.19569224,110380.0,110370.0,0.742]
[1748363965311,0.19569224,110380.0,110370.0,1.25405879]
[1748363966558,0.19569224,110380.0,110370.0,1.79619173]
[1748363966559,0.22337049,110380.0,110370.0,1.79619173]
[1748363966793,0.19931088,110380.0,110370.0,1.78713171]
[1748363967014,0.19931088,110380.0,110370.0,1.79619181]
[1748363967253,0.19931088,110380.0,110370.0,1.79619189]
[1748363967478,0.19931088,110380.0,110370.0,1.81431201]
[1748363967699,0.19025168,110380.0,110370.0,1.77807145]
[1748363967932,0.17325168,110380.0,110370.0,1.59686279]
[1748363968445,0.18915168,110380.0,110370.0,1.25405879]
[1748363968686,0.20515168,110380.0,110370.0,1.63509879]
[1748363968912,0.20515168,110380.0,110370.0,1.03124]
[1748363969140,0.20515168,110380.0,110370.0,0.742]
[1748363971064,0.20515168,110380.0,110370.0,1.25405879]
[1748363972653,0.19821112,110380.0,110370.0,1.66581971]
[1748363972878,0.19821112,110380.0,110370.0,1.96511988]
[1748363973126,0.19821112,110380.0,110370.0,1.0413]
[1748363973345,0.19821112,110380.0,110370.0,1.55335879]
[1748363973346,0.21331112,110380.0,110370.0,1.55335879]
[1748363973796,0.21331112,110380.0,110370.0,1.75104879]
[1748363974013,0.20425168,110380.0,110370.0,1.68670779]
[1748363975228,0.18725168,110380.0,110370.0,1.68670779]
[1748363975939,0.18725168,110380.0,110370.0,1.55335879]
[1748363977795,0.18725168,110380.0,110370.0,1.67354579]
[1748363978023,0.19929291,110390.0,110380.0,0.64300652]
[1748363978236,0.19929324,110390.0,110380.0,0.69743979]
[1748363978444,0.21579324,110390.0,110380.0,0.65934379]
[1748363978653,0.21579324,110390.0,110380.0,1.43938379]
[1748363978879,0.23209324,110390.0,110380.0,1.41121879]
[1748363979315,0.23209324,110390.0,110380.0,1.29209879]
[1748363979533,0.23209324,110390.0,110380.0,1.39973979]
[1748363980627,0.23209324,110390.0,110380.0,1.29209879]
[1748363980844,0.23209324,110390.0,110380.0,0.4]
[1748363981993,0.21509324,110390.0,110380.0,0.4]
[1748363982666,0.30614719,110390.0,110380.0,0.74]
[1748363986439,0.21509324,110390.0,110380.0,0.74]
[1748363986687,0.21509324,110390.0,110380.0,1.25205879]
[1748363988709,0.18229324,110390.0,110380.0,1.43325103]
[1748363989199,0.16529324,110390.0,110380.0,1.43325103]
[1748363989429,0.16529324,110390.0,110380.0,1.44231064]
[1748363989902,0.16529324,110390.0,110380.0,1.25205879]
[1748363990437,0.19789324,110390.0,110380.0,0.74]
[1748363990672,0.19789324,110390.0,110380.0,1.25205879]
[1748363990947,0.19789324,110390.0,110380.0,0.74]
[1748363994553,0.19789324,110390.0,110380.0,1.25205879]
[1748363996135,0.18089324,110390.0,110380.0,1.25205879]
[1748363996360,0.18316903,110390.0,110380.0,1.25205879]
[1748363997315,0.18089324,110390.0,110380.0,1.25205879]
[1748363997557,0.18316903,110390.0,110380.0,1.25205879]
[1748363999189,0.18316903,110390.0,110380.0,0.74]
[1748364001061,0.18316903,110390.0,110380.0,1.25205879]
[1748364001793,0.27422298,110390.0,110380.0,0.74]
[1748364002014,0.27194719,110390.0,110380.0,0.74]
[1748364002257,0.32226417,110390.0,110380.0,0.74]
[1748364002489,0.32226417,110390.0,110380.0,0.4]
[1748364002490,0.27194719,110390.0,110380.0,0.4]
[1748364002721,0.23122894,110370.0,110360.0,1.22965879]
[1748364002940,0.23122894,110370.0,110360.0,0.94284682]
[1748364003184,0.23122894,110370.0,110360.0,1.34284682]
[1748364003406,0.21310866,110370.0,110360.0,1.34284682]
[1748364003683,0.32228289,110370.0,110360.0,0.00014803]
[1748364004141,0.32228289,110370.0,110360.0,0.00214803]
[1748364004385,0.32228289,110370.0,110360.0,0.34214803]
[1748364004603,0.32228289,110370.0,110360.0,0.34014803]
[1748364004818,0.32228289,110370.0,110360.0,0.85520682]
[1748364005037,0.32228289,110370.0,110360.0,0.85320682]
[1748364005710,0.32228289,110370.0,110360.0,0.34214803]
[1748364005996,0.32228289,110370.0,110360.0,0.00179803]
[1748364006761,0.19932894,110370.0,110360.0,0.85305879]
[1748364007116,0.20032894,110370.0,110360.0,0.85305879]
[1748364007570,0.19932894,110370.0,110360.0,0.85205879]
[1748364008021,0.20132894,110370.0,110360.0,0.85205879]
[1748364008278,0.19932894,110370.0,110360.0,0.85205879]
[1748364009798,0.1812071,110380.0,110370.0,0.52120866]
[1748364010016,0.1812071,110380.0,110370.0,1.13865879]
[1748364010465,0.1642071,110380.0,110370.0,1.53865879]
[1748364011148,0.1662071,110380.0,110370.0,1.53865879]
[1748364011589,0.1843071,110380.0,110370.0,1.53865879]
[1748364016004,0.2001071,110380.0,110370.0,1.53865879]
[1748364016315,0.2001071,110380.0,110370.0,1.25205879]
[1748364016407,0.2001071,110380.0,110370.0,1.62897879]
[1748364017813,0.1682071,110380.0,110370.0,1.62897879]
[1748364018270,0.1512071,110380.0,110370.0,1.62897879]
[1748364018956,0.1512071,110380.0,110370.0,1.62865879]
[1748364019846,0.1512071,110380.0,110370.0,1.1166]
[1748364020067,0.1512071,110380.0,110370.0,1.62865879]
[1748364020303,0.1829071,110380.0,110370.0,1.62865879]
[1748364022094,0.1829071,110380.0,110370.0,1.66260008]
[1748364022791,0.1668071,110380.0,110370.0,1.66260008]
[1748364023457,0.1512071,110380.0,110370.0,1.11624]
[1748364023685,0.1512071,110380.0,110370.0,1.66260008]
[1748364025459,0.15158289,110380.0,110370.0,1.66260008]
[1748364025681,0.16658289,110380.0,110370.0,1.66260008]
[1748364027317,0.16658289,110380.0,110370.0,0.74]
[1748364027549,0.25763684,110380.0,110370.0,1.28636008]
[1748364027761,0.25536105,110380.0,110370.0,1.28636008]
[1748364027988,0.25536105,110380.0,110370.0,0.74]
[1748364028199,0.25536105,110380.0,110370.0,1.28636008]
[1748364028904,0.25536105,110380.0,110370.0,0.74]
[1748364029126,0.25536105,110380.0,110370.0,1.28636008]
[1748364032510,0.23836105,110380.0,110370.0,1.28636008]
[1748364032731,0.23836105,110380.0,110370.0,1.28640008]
[1748364033865,0.23836105,110380.0,110370.0,0.94640008]
[1748364034530,0.23836105,110380.0,110370.0,0.40004]
[1748364034748,0.23836105,110380.0,110370.0,0.94640008]
[1748364037850,0.23836105,110380.0,110370.0,1.28640008]
[1748364038073,1.43843557,110380.0,110370.0,1.28640008]
[1748364038340,1.31728162,110380.0,110370.0,1.46760874]
[1748364038561,1.31728162,110380.0,110370.0,0.74004]
[1748364038778,1.31728162,110380.0,110370.0,0.88640008]
[1748364039685,1.30028162,110380.0,110370.0,0.88640008]
[1748364039891,1.30028162,110380.0,110370.0,1.28640008]
[1748364042381,1.31578162,110380.0,110370.0,1.66184008]
[1748364042597,1.31578162,110380.0,110370.0,1.28640008]
[1748364042598,1.33078162,110380.0,110370.0,1.28640008]
[1748364042825,1.33078162,110380.0,110370.0,1.57236008]
[1748364043036,1.33078162,110380.0,110370.0,1.026]
[1748364043280,1.33078162,110380.0,110370.0,1.57236008]
[1748364043523,1.33078162,110380.0,110370.0,1.28640008]
[1748364043741,1.30028162,110380.0,110370.0,1.66200008]
[1748364046350,1.31678162,110380.0,110370.0,1.66200008]
[1748364046565,1.33238162,110380.0,110370.0,1.66200008]
[1748364046787,1.31538162,110380.0,110370.0,1.66200008]
[1748364047232,1.31538162,110380.0,110370.0,1.66172008]
[1748364048123,1.31538162,110380.0,110370.0,0.74004]
[1748364048352,1.31538162,110380.0,110370.0,1.57188008]
[1748364049238,1.31538162,110380.0,110370.0,1.57180008]
[1748364051051,1.28328162,110380.0,110370.0,1.57180008]
[1748364053730,1.26628162,110380.0,110370.0,1.57180008]
[1748364054588,1.26168162,110380.0,110370.0,1.57180008]
[1748364057712,1.26168162,110380.0,110370.0,1.76206917]
[1748364058341,1.26168162,110380.0,110370.0,1.57180008]
[1748364060004,1.27798162,110380.0,110370.0,1.57180008]
[1748364060891,1.26098162,110380.0,110370.0,1.57180008]
[1748364061381,1.26098162,110380.0,110370.0,1.28640008]
[1748364061617,1.26280076,110380.0,110370.0,1.761989]
[1748364061832,1.26280076,110380.0,110370.0,1.75292874]
[1748364062059,1.27024123,110380.0,110370.0,1.66140008]
[1748364062529,1.25374123,110380.0,110370.0,1.84260874]
[1748364062983,1.25374123,110380.0,110370.0,1.66140008]
[1748364063429,1.25374123,110380.0,110370.0,2.42526317]
[1748364063675,1.20407452,110380.0,110370.0,2.73362335]
[1748364063929,1.20407452,110380.0,110370.0,2.87439725]
[1748364063930,1.23125178,110380.0,110370.0,2.87439725]
[1748364064161,1.23125178,110380.0,110370.0,4.04905225]
[1748364064162,1.24031122,110380.0,110370.0,4.04905225]
[1748364064379,1.24937075,110380.0,110370.0,3.69518025]
[1748364065046,1.24031122,110380.0,110370.0,4.23400125]
[1748364065265,1.24937075,110380.0,110370.0,4.23400125]
[1748364065482,1.43056299,110380.0,110370.0,3.98495203]
[1748364065665,1.41244501,110380.0,110370.0,3.37246248]
[1748364065915,1.41244501,110380.0,110370.0,3.3815225]
[1748364066127,1.42150462,110380.0,110370.0,3.39058244]
[1748364067226,1.42150462,110380.0,110370.0,3.39058186]
[1748364067723,1.24031238,110380.0,110370.0,3.37246199]
[1748364067941,1.40450462,110380.0,110370.0,3.37246199]
[1748364068361,1.40450462,110380.0,110370.0,3.38152184]
[1748364068836,1.3863859,110380.0,110370.0,1.938398]
[1748364069037,1.4181859,110380.0,110370.0,2.37997308]
[1748364069245,1.4181859,110380.0,110370.0,2.32799608]
[1748364070129,1.4181859,110380.0,110370.0,2.50920474]
[1748364070348,1.3863859,110380.0,110370.0,2.518265]
[1748364070555,1.3863859,110380.0,110370.0,2.32799608]
[1748364070556,1.37732637,110380.0,110370.0,2.32799608]
[1748364070755,1.37732637,110380.0,110370.0,2.50920474]
[1748364072521,1.37732637,110380.0,110370.0,2.51826517]
[1748364074049,1.37732637,110380.0,110370.0,2.32799608]
[1748364074261,1.38406676,110380.0,110370.0,2.32799608]
[1748364074900,1.36706676,110380.0,110370.0,2.51826517]
[1748364075587,1.36706676,110380.0,110370.0,2.50920474]
[1748364075998,1.36706676,110380.0,110370.0,2.32799608]
[1748364076226,1.36706676,110380.0,110370.0,1.95303608]
[1748364076474,1.38356676,110380.0,110370.0,1.60565508]
[1748364076682,1.38356676,110380.0,110370.0,1.37608008]
[1748364076871,1.38356676,110380.0,110370.0,1.11496]
[1748364077092,1.38356676,110380.0,110370.0,1.66132008]
[1748364079286,1.38356676,110380.0,110370.0,1.57164008]
[1748364079763,1.17007452,110380.0,110370.0,2.33154899]
[1748364079981,1.17007452,110380.0,110370.0,4.48475067]
[1748364080182,1.17007452,110380.0,110370.0,4.46277824]
[1748364080375,1.17007452,110380.0,110370.0,4.17753824]
[1748364080376,0.67664745,110380.0,110370.0,4.17753824]
[1748364080824,0.67664745,110380.0,110370.0,6.73374324]
[1748364081239,0.67664745,110380.0,110370.0,4.63847684]
[1748364081452,0.67664745,110380.0,110370.0,4.92371684]
[1748364081678,0.67664745,110380.0,110370.0,4.64147684]
[1748364081929,0.67664745,110380.0,110370.0,5.86096684]
[1748364082143,0.65964745,110380.0,110370.0,6.17143084]
[1748364082553,0.6687064,110380.0,110370.0,6.00852984]
[1748364082761,0.66870632,110380.0,110370.0,6.00852984]
[1748364082969,0.66870632,110380.0,110370.0,5.84919484]
[1748364083215,0.66870632,110380.0,110370.0,5.80760284]
[1748364083216,0.65964745,110380.0,110370.0,5.80760284]
[1748364083913,0.16622038,110380.0,110370.0,6.75622684]
[1748364084572,0.17527933,110380.0,110370.0,6.75622684]
[1748364084781,0.16622038,110380.0,110370.0,6.75622684]
[1748364085648,0.17527925,110380.0,110370.0,6.75622684]
[1748364085852,0.16622038,110380.0,110370.0,6.47098684]
[1748364086058,0.16622038,110380.0,110370.0,6.75618684]
[1748364086694,0.17527933,110380.0,110370.0,6.66326184]
[1748364086896,0.17527925,110380.0,110370.0,5.86148484]
[1748364087478,0.37459021,110380.0,110370.0,5.48660484]
[1748364087702,0.18433853,110380.0,110370.0,4.87057584]
[1748364087918,0.18433844,110380.0,110370.0,6.20867284]
[1748364088135,0.18433844,110380.0,110370.0,6.58351284]
[1748364088634,0.18433844,110380.0,110370.0,6.03715276]
[1748364088849,0.18433844,110380.0,110370.0,6.58351284]
[1748364089053,0.16733844,110380.0,110370.0,6.72414684]
[1748364089503,0.14922038,110380.0,110370.0,6.72414684]
[1748364091054,0.14922038,110380.0,110370.0,6.43894684]
[1748364091309,0.14922038,110380.0,110370.0,6.75610684]
[1748364092156,0.14922038,110380.0,110370.0,6.59506084]
[1748364092371,0.14922038,110380.0,110370.0,7.14698684]
[1748364092795,0.14922038,110380.0,110370.0,6.86182684]
[1748364093021,0.14922038,110380.0,110370.0,7.14698684]
[1748364093456,0.14922038,110380.0,110370.0,6.86182684]
[1748364093900,0.14922038,110380.0,110370.0,7.14698684]
[1748364094564,0.14922038,110380.0,110370.0,7.11498684]
[1748364095975,0.14922038,110380.0,110370.0,2.37206384]
[1748364096179,0.13222038,110380.0,110370.0,7.11498684]
[1748364096880,0.13222038,110380.0,110370.0,7.02844784]
[1748364097179,0.13222038,110380.0,110370.0,7.41428684]
[1748364097316,0.13222038,110380.0,110370.0,6.62636484]
[1748364097540,0.13222038,110380.0,110370.0,6.30492984]
[1748364098084,0.13222038,110380.0,110370.0,2.67136384]
[1748364098359,0.13222038,110380.0,110370.0,7.41428684]
[1748364098788,0.13222038,110380.0,110370.0,7.12912684]
[1748364099035,0.17489813,110380.0,110370.0,4.95084102]
[1748364099263,0.17489813,110380.0,110370.0,1.227312]
[1748364099264,0.36283134,110380.0,110370.0,1.227312]
[1748364099501,0.36283134,110380.0,110370.0,1.93315]
[1748364099946,0.36283134,110380.0,110370.0,1.55835]
[1748364100163,0.36283134,110380.0,110370.0,1.93311]
[1748364100409,0.36283134,110380.0,110370.0,2.66973909]
[1748364100617,0.36283134,110380.0,110370.0,2.13243927]
[1748364100838,0.36283134,110380.0,110370.0,2.14149945]
[1748364101368,0.36283134,110380.0,110370.0,2.12337901]
[1748364102025,0.36283134,110380.0,110370.0,2.13243927]
[1748364102482,0.37189087,110380.0,110370.0,2.15055939]
[1748364102703,0.37189087,110380.0,110370.0,2.14149945]
[1748364103157,0.35489087,110380.0,110370.0,2.68785953]
[1748364103700,0.14652038,110380.0,110370.0,4.64035548]
[1748364103910,0.12427933,110380.0,110370.0,4.56921328]
[1748364104162,0.34713126,110380.0,110370.0,0.74604]
[1748364104394,0.98454529,110380.0,110370.0,0.00604]
[1748364105081,0.43818521,110380.0,110370.0,0.00604]
[1748364105285,0.43818521,110380.0,110370.0,0.00304]
[1748364105534,0.43818521,110380.0,110370.0,0.00204]
[1748364105772,0.43918521,110380.0,110370.0,0.00204]
[1748364106046,0.98554529,110380.0,110370.0,0.00204]
[1748364107680,0.98554529,110380.0,110370.0,4e-05]
[1748364107906,1.27070529,110380.0,110370.0,4e-05]
[1748364110180,0.72434521,110380.0,110370.0,4e-05]
[1748364110395,0.70734521,110380.0,110370.0,4e-05]
[1748364111049,0.42218521,110380.0,110370.0,4e-05]
[1748364113928,0.96854529,110380.0,110370.0,4e-05]
[1748364114842,0.42218521,110380.0,110370.0,4e-05]
[1748364115048,0.33113126,110380.0,110370.0,4e-05]
[1748364115923,0.42218521,110380.0,110370.0,4e-05]
[1748364116137,0.96854529,110380.0,110370.0,4e-05]
[1748364116616,0.42218521,110380.0,110370.0,4e-05]
[1748364117483,0.40518521,110380.0,110370.0,4e-05]
[1748364120863,0.95154529,110380.0,110370.0,4e-05]
[1748364122390,0.94926529,110380.0,110370.0,4e-05]
[1748364124574,0.93226529,110380.0,110370.0,4e-05]
[1748364131616,0.91526529,110380.0,110370.0,4e-05]
[1748364132025,0.21390866,110370.0,110350.0,0.4731964]
[1748364132291,0.22526195,110360.0,110350.0,0.4]
[1748364132517,0.22298616,110360.0,110350.0,0.4]
[1748364133499,0.22298616,110360.0,110350.0,0.402]
[1748364133500,0.19028616,110360.0,110350.0,0.402]
[1748364133941,0.19028616,110360.0,110350.0,0.4]
[1748364134176,0.19028616,110360.0,110350.0,0.74]
[1748364134659,0.19028616,110360.0,110350.0,1.32076008]
[1748364134882,0.19028616,110360.0,110350.0,0.742]
[1748364135564,0.19028616,110360.0,110350.0,0.744]
[1748364135994,0.19028616,110360.0,110350.0,0.76]
[1748364136249,0.19028616,110360.0,110350.0,0.7769]
[1748364137420,0.19028616,110360.0,110350.0,0.7609]
[1748364138898,0.19028616,110360.0,110350.0,1.32316008]
[1748364139107,0.00906076,110360.0,110350.0,2.99361284]
[1748364139333,0.19934668,110360.0,110350.0,4.49788334]
[1748364139552,0.19028592,110360.0,110350.0,4.49788334]
[1748364139942,0.19028592,110360.0,110350.0,4.506945]
[1748364139944,0.19028592,110360.0,110350.0,4.49788334]
[1748364140183,0.19028592,110360.0,110350.0,3.965457]
[1748364140808,0.19028592,110360.0,110350.0,3.95639534]
[1748364141186,0.19028592,110360.0,110350.0,4.01581734]
[1748364141390,0.19934709,110360.0,110350.0,3.79367734]
[1748364141618,0.01812143,110360.0,110350.0,3.8118005]
[1748364141783,0.03624368,110360.0,110350.0,3.8118005]
[1748364142266,0.03624368,110360.0,110350.0,4.6531025]
[1748364142892,0.01812143,110360.0,110350.0,4.6531025]
[1748364143093,0.02718251,110360.0,110350.0,4.6531025]
[1748364143276,0.02718251,110360.0,110350.0,4.8938015]
[1748364143699,0.02718251,110360.0,110350.0,4.4151315]
[1748364143911,0.02718251,110360.0,110350.0,4.7897715]
[1748364144242,0.02718243,110360.0,110350.0,4.7897715]
[1748364144449,0.00906035,110370.0,110360.0,0.19028625]
[1748364144699,0.20838954,110370.0,110360.0,1.55851708]
[1748364144862,0.19932944,110370.0,110360.0,1.54181708]
[1748364145177,0.19932944,110370.0,110360.0,1.33474008]
[1748364145351,0.19932944,110370.0,110350.0,0.402]
[1748364145352,0.23242944,110370.0,110350.0,0.402]
[1748364145570,0.22566195,110360.0,110350.0,0.402]
[1748364145713,0.86080019,110360.0,110350.0,0.002]
[1748364145920,0.31444011,110360.0,110350.0,0.002]
[1748364146106,0.84380019,110360.0,110350.0,0.002]
[1748364146379,0.30650119,110360.0,110350.0,0.002]
[1748364146538,0.30650119,110360.0,110330.0,0.4]
[1748364146539,0.19032066,110340.0,110330.0,0.4]
[1748364146747,0.22312066,110340.0,110330.0,0.4]
[1748364146935,0.22312066,110340.0,110330.0,0.74]
[1748364147959,0.22316989,110340.0,110330.0,0.742]
[1748364148178,0.22116989,110340.0,110330.0,0.742]
[1748364149207,0.31222384,110340.0,110330.0,0.742]
[1748364149424,0.31222384,110340.0,110330.0,0.744]
[1748364152026,0.31222384,110340.0,110330.0,0.744]
[1748364152457,1.14362392,110340.0,110330.0,0.004]
[1748364153120,1.14362392,110340.0,110330.0,0.002]
[1748364153349,1.13568665,110340.0,110330.0,0.002]
[1748364153987,0.23221928,110320.0,110310.0,0.74]
[1748364154217,0.32327323,110320.0,110310.0,0.74]
[1748364155209,0.32327323,110320.0,110310.0,0.742]
[1748364155567,0.32327323,110320.0,110310.0,0.74]
[1748364156196,0.32327323,110320.0,110310.0,0.34]
[1748364157266,0.32327323,110320.0,110310.0,0.74]
[1748364159340,0.32327323,110320.0,110310.0,1.28636008]
[1748364159579,0.19941928,110320.0,110310.0,1.28636008]
[1748364160322,0.18129079,110320.0,110310.0,1.28636008]
[1748364160523,0.19941928,110320.0,110310.0,1.28636008]
[1748364160724,0.02719294,110320.0,110310.0,1.49486254]
[1748364160949,0.21754826,110320.0,110310.0,1.48579768]
[1748364161358,0.00906388,110320.0,110310.0,1.50392749]
[1748364161587,0.03625642,110320.0,110310.0,1.53782749]
[1748364162591,0.04532087,110320.0,110310.0,1.53782749]
[1748364162824,0.22661231,110320.0,110310.0,1.53782766]
[1748364163027,0.22661231,110320.0,110310.0,1.53882766]
[1748364163256,0.22661231,110320.0,110310.0,1.54789252]
[1748364163484,0.20848414,110320.0,110310.0,1.47973257]
[1748364163693,0.20848414,110320.0,110310.0,1.4887976]
[1748364163900,0.19035532,110320.0,110310.0,1.28936008]
[1748364164116,0.19035532,110320.0,110310.0,1.34936008]
[1748364164777,0.20765532,110320.0,110310.0,0.803]
[1748364165031,0.20765532,110320.0,110310.0,1.34936008]
[1748364165032,0.22435532,110320.0,110310.0,1.34936008]
[1748364165278,0.22435532,110320.0,110310.0,1.28936008]
[1748364165534,0.31540927,110320.0,110310.0,0.743]
[1748364166005,0.31540927,110320.0,110310.0,1.28936008]
[1748364166210,0.31540927,110320.0,110310.0,0.743]
[1748364167569,0.29840927,110320.0,110310.0,0.743]
[1748364168640,0.20735532,110320.0,110310.0,1.28936008]
[1748364170587,0.29840927,110320.0,110310.0,0.743]